[Event "Titled Tuesday Blitz April 25 Early 2023"]
[White "Fernandez Siles, Luis"]
[Black "Hamitevici, Vladimir"]
[WhiteFideId "2209420"]
[BlackFideId "13902393"]
[WhiteElo "2195"]
[BlackElo "2401"]
[Result "0-1"]
[Round "06"]
[TimeControl "180+2"]
[Date "2023.04.25"]
[WhiteClock "0:00:03"]
[BlackClock "0:00:15"]

1. e4 {[%clk 0:03:00]}  e5 {[%clk 0:02:59]} 2. Nf3 {[%clk 0:03:00]}  Nc6 {[%clk 0:02:59]} 3. Bb5 {[%clk 0:03:00]}  a6 {[%clk 0:02:58]} 4. Ba4 {[%clk 0:03:00]}  d6 {[%clk 0:02:59]} 5. O-O {[%clk 0:02:49]}  Bd7 {[%clk 0:02:58]} 6. c3 {[%clk 0:02:27]}  g6 {[%clk 0:02:57]} 7. d4 {[%clk 0:02:23]}  Bg7 {[%clk 0:02:56]} 8. d5 {[%clk 0:02:17]}  Nb8 {[%clk 0:02:48]} 9. Bxd7+ {[%clk 0:02:13]}  Nxd7 {[%clk 0:02:48]} 10. c4 {[%clk 0:02:14]}  h6 {[%clk 0:02:45]} 11. Nc3 {[%clk 0:02:12]}  f5 {[%clk 0:02:44]} 12. exf5 {[%clk 0:02:06]}  gxf5 {[%clk 0:02:45]} 13. Re1 {[%clk 0:02:06]}  Kf8 {[%clk 0:02:34]} 14. g3 {[%clk 0:01:55]}  Bf6 {[%clk 0:02:24]} 15. Be3 {[%clk 0:01:44]}  Ne7 {[%clk 0:02:17]} 16. Qd2 {[%clk 0:01:40]}  Kg7 {[%clk 0:02:03]} 17. Kh1 {[%clk 0:01:38]}  Qe8 {[%clk 0:01:56]} 18. Qe2 {[%clk 0:01:30]}  Qg6 {[%clk 0:01:42]} 19. Nh4 {[%clk 0:01:19]}  Bxh4 {[%clk 0:01:41]} 20. gxh4 {[%clk 0:01:19]}  Kh7 {[%clk 0:01:33]} 21. Rg1 {[%clk 0:01:14]}  Qf7 {[%clk 0:01:33]} 22. h5 {[%clk 0:01:10]}  Rhg8 {[%clk 0:01:29]} 23. f4 {[%clk 0:01:03]}  Nf6 {[%clk 0:01:22]} 24. fxe5 {[%clk 0:00:59]}  dxe5 {[%clk 0:01:23]} 25. Raf1 {[%clk 0:00:49]}  Qxh5 {[%clk 0:01:18]} 26. Qxh5 {[%clk 0:00:40]}  Nxh5 {[%clk 0:01:19]} 27. Rxg8 {[%clk 0:00:38]}  Rxg8 {[%clk 0:01:20]} 28. Bc5 {[%clk 0:00:38]}  Re8 {[%clk 0:01:04]} 29. Bxe7 {[%clk 0:00:37]}  Rxe7 {[%clk 0:01:05]} 30. Rxf5 {[%clk 0:00:37]}  Ng7 {[%clk 0:01:05]} 31. Rf2 {[%clk 0:00:31]}  e4 {[%clk 0:01:03]} 32. Re2 {[%clk 0:00:31]}  e3 {[%clk 0:01:03]} 33. c5 {[%clk 0:00:30]}  Nf5 {[%clk 0:01:02]} 34. d6 {[%clk 0:00:26]}  cxd6 {[%clk 0:01:01]} 35. cxd6 {[%clk 0:00:26]}  Rd7 {[%clk 0:00:56]} 36. Ne4 {[%clk 0:00:27]}  Kg6 {[%clk 0:00:46]} 37. Kg2 {[%clk 0:00:26]}  Nxd6 {[%clk 0:00:46]} 38. Nxd6 {[%clk 0:00:24]}  Rxd6 {[%clk 0:00:47]} 39. Kf3 {[%clk 0:00:18]}  Kf5 {[%clk 0:00:39]} 40. Rxe3 {[%clk 0:00:14]}  Rd2 {[%clk 0:00:39]} 41. Rb3 {[%clk 0:00:11]}  b5 {[%clk 0:00:36]} 42. h4 {[%clk 0:00:09]}  Rd4 {[%clk 0:00:34]} 43. h5 {[%clk 0:00:06]}  Kg5 {[%clk 0:00:27]} 44. Rc3 {[%clk 0:00:04]}  Rc4 {[%clk 0:00:21]} 45. Rd3 {[%clk 0:00:04]}  Rc5 {[%clk 0:00:15]} 46. Rd6 {[%clk 0:00:03]}  a5 {[%clk 0:00:15]} 0-1


[Site "https://www.chess.com"]

[Event "Titled Tuesday Blitz April 25 Early 2023"]
[White "Khamdamova, Afruza"]
[Black "polandchessplayer"]
[WhiteFideId "14210444"]
[WhiteElo "2210"]
[BlackElo "2612"]
[Result "1-0"]
[Round "06"]
[TimeControl "180+2"]
[Date "2023.04.25"]
[WhiteClock "0:00:23"]
[BlackClock "0:00:17"]

1. e4 {[%clk 0:03:00]}  c6 {[%clk 0:02:59]} 2. d4 {[%clk 0:03:00]}  d5 {[%clk 0:03:00]} 3. Nc3 {[%clk 0:03:00]}  dxe4 {[%clk 0:03:00]} 4. Nxe4 {[%clk 0:03:01]}  Nf6 {[%clk 0:03:01]} 5. Qd3 {[%clk 0:03:01]}  Nbd7 {[%clk 0:02:54]} 6. Nf3 {[%clk 0:03:00]}  e6 {[%clk 0:02:51]} 7. Be2 {[%clk 0:02:58]}  Be7 {[%clk 0:02:51]} 8. O-O {[%clk 0:02:58]}  O-O {[%clk 0:02:51]} 9. Bf4 {[%clk 0:02:56]}  Nxe4 {[%clk 0:02:50]} 10. Qxe4 {[%clk 0:02:57]}  Nf6 {[%clk 0:02:51]} 11. Qd3 {[%clk 0:02:57]}  b6 {[%clk 0:02:48]} 12. Ne5 {[%clk 0:02:55]}  Bb7 {[%clk 0:02:47]} 13. Bf3 {[%clk 0:02:55]}  Rc8 {[%clk 0:02:48]} 14. c4 {[%clk 0:02:45]}  Bd6 {[%clk 0:02:42]} 15. Rad1 {[%clk 0:02:44]}  Qe7 {[%clk 0:02:15]} 16. Bg5 {[%clk 0:02:38]}  Rfd8 {[%clk 0:02:10]} 17. Ng4 {[%clk 0:02:35]}  Bb8 {[%clk 0:01:52]} 18. g3 {[%clk 0:02:27]}  Rd7 {[%clk 0:01:22]} 19. Qd2 {[%clk 0:02:27]}  h5 {[%clk 0:01:14]} 20. Nxf6+ {[%clk 0:01:59]}  gxf6 {[%clk 0:01:15]} 21. Bh4 {[%clk 0:01:57]}  Kg7 {[%clk 0:01:06]} 22. Bxh5 {[%clk 0:01:56]}  Rh8 {[%clk 0:01:07]} 23. Bf3 {[%clk 0:01:53]}  Qd6 {[%clk 0:01:02]} 24. Rfe1 {[%clk 0:01:33]}  c5 {[%clk 0:00:48]} 25. Bxb7 {[%clk 0:01:26]}  Rxb7 {[%clk 0:00:49]} 26. dxc5 {[%clk 0:01:26]}  Qxc5 {[%clk 0:00:48]} 27. Qd4 {[%clk 0:01:16]}  Qf5 {[%clk 0:00:40]} 28. Re4 {[%clk 0:00:55]}  Be5 {[%clk 0:00:37]} 29. Rg4+ {[%clk 0:00:55]}  Kh7 {[%clk 0:00:37]} 30. Qe4 {[%clk 0:00:46]}  Qxe4 {[%clk 0:00:38]} 31. Rxe4 {[%clk 0:00:46]}  Bxb2 {[%clk 0:00:39]} 32. Re2 {[%clk 0:00:42]}  Be5 {[%clk 0:00:31]} 33. f4 {[%clk 0:00:42]}  Bc3 {[%clk 0:00:32]} 34. Rd3 {[%clk 0:00:41]}  Bb4 {[%clk 0:00:28]} 35. Bxf6 {[%clk 0:00:41]}  Rc8 {[%clk 0:00:29]} 36. Re4 {[%clk 0:00:37]}  Rbc7 {[%clk 0:00:29]} 37. a3 {[%clk 0:00:31]}  Bf8 {[%clk 0:00:27]} 38. Be5 {[%clk 0:00:26]}  Rxc4 {[%clk 0:00:27]} 39. Rxc4 {[%clk 0:00:26]}  Rxc4 {[%clk 0:00:28]} 40. Rd7 {[%clk 0:00:26]}  Kg6 {[%clk 0:00:25]} 41. Rxa7 {[%clk 0:00:26]}  b5 {[%clk 0:00:24]} 42. Ra8 {[%clk 0:00:23]}  Rc2 {[%clk 0:00:17]} 43. Rxf8 {[%clk 0:00:23]} 1-0


[Site "https://www.chess.com"]

[Event "Titled Tuesday Blitz April 25 Early 2023"]
[White "Shuvalov, Evgenij"]
[Black "Brunner, Nicolas"]
[WhiteFideId "4187237"]
[BlackFideId "620246"]
[WhiteElo "2080"]
[BlackElo "2327"]
[Result "1/2-1/2"]
[Round "06"]
[TimeControl "180+2"]
[Date "2023.04.25"]
[WhiteClock "0:00:59"]
[BlackClock "0:00:07"]

1. d4 {[%clk 0:02:54]}  d5 {[%clk 0:02:59]} 2. c4 {[%clk 0:02:53]}  e6 {[%clk 0:02:59]} 3. Nc3 {[%clk 0:02:53]}  Be7 {[%clk 0:03:00]} 4. cxd5 {[%clk 0:02:52]}  exd5 {[%clk 0:03:00]} 5. Nf3 {[%clk 0:02:52]}  c6 {[%clk 0:02:59]} 6. Bf4 {[%clk 0:02:52]}  Nf6 {[%clk 0:02:58]} 7. e3 {[%clk 0:02:52]}  Bf5 {[%clk 0:02:58]} 8. Bd3 {[%clk 0:02:51]}  Bxd3 {[%clk 0:02:57]} 9. Qxd3 {[%clk 0:02:52]}  Nbd7 {[%clk 0:02:58]} 10. O-O {[%clk 0:02:53]}  O-O {[%clk 0:02:57]} 11. h3 {[%clk 0:02:53]}  Re8 {[%clk 0:02:57]} 12. Ne5 {[%clk 0:02:53]}  Nxe5 {[%clk 0:02:51]} 13. Bxe5 {[%clk 0:02:54]}  Bd6 {[%clk 0:02:46]} 14. Bxd6 {[%clk 0:02:52]}  Qxd6 {[%clk 0:02:45]} 15. Rab1 {[%clk 0:02:52]}  a5 {[%clk 0:02:45]} 16. Qc2 {[%clk 0:02:45]}  Ne4 {[%clk 0:02:40]} 17. Nxe4 {[%clk 0:02:43]}  Rxe4 {[%clk 0:02:39]} 18. Rfc1 {[%clk 0:02:32]}  f5 {[%clk 0:02:37]} 19. Qc5 {[%clk 0:02:31]}  Qxc5 {[%clk 0:02:34]} 20. Rxc5 {[%clk 0:02:30]}  f4 {[%clk 0:02:34]} 21. Rc3 {[%clk 0:02:21]}  Rae8 {[%clk 0:02:30]} 22. Re1 {[%clk 0:02:14]}  Rxd4 {[%clk 0:02:28]} 23. Re2 {[%clk 0:02:04]}  fxe3 {[%clk 0:02:24]} 24. Rcxe3 {[%clk 0:02:01]}  Rxe3 {[%clk 0:02:23]} 25. fxe3 {[%clk 0:02:01]}  Rd1+ {[%clk 0:02:17]} 26. Kf2 {[%clk 0:02:02]}  Kf7 {[%clk 0:02:16]} 27. Kf3 {[%clk 0:01:53]}  Ke6 {[%clk 0:02:16]} 28. e4 {[%clk 0:01:52]}  d4 {[%clk 0:02:16]} 29. Rc2 {[%clk 0:01:48]}  Re1 {[%clk 0:02:06]} 30. b3 {[%clk 0:01:38]}  Re3+ {[%clk 0:01:59]} 31. Kf4 {[%clk 0:01:37]}  Rc3 {[%clk 0:01:58]} 32. Rd2 {[%clk 0:01:34]}  c5 {[%clk 0:01:58]} 33. h4 {[%clk 0:01:34]}  b5 {[%clk 0:01:53]} 34. g4 {[%clk 0:01:31]}  a4 {[%clk 0:01:53]} 35. bxa4 {[%clk 0:01:28]}  bxa4 {[%clk 0:01:53]} 36. h5 {[%clk 0:01:28]}  a3 {[%clk 0:01:53]} 37. g5 {[%clk 0:01:26]}  d3 {[%clk 0:01:49]} 38. Ke3 {[%clk 0:01:25]}  c4 {[%clk 0:01:49]} 39. h6 {[%clk 0:01:24]}  gxh6 {[%clk 0:01:48]} 40. gxh6 {[%clk 0:01:25]}  Rc1 {[%clk 0:01:46]} 41. Rg2 {[%clk 0:01:22]}  Ra1 {[%clk 0:01:40]} 42. Kd4 {[%clk 0:01:19]}  Rc1 {[%clk 0:01:38]} 43. Ke3 {[%clk 0:01:02]}  Rc2 {[%clk 0:01:37]} 44. Rxc2 {[%clk 0:01:01]}  dxc2 {[%clk 0:01:37]} 45. Kd2 {[%clk 0:01:02]}  Ke5 {[%clk 0:01:36]} 46. Kxc2 {[%clk 0:01:02]}  Kxe4 {[%clk 0:01:36]} 47. Kc3 {[%clk 0:01:02]}  Kd5 {[%clk 0:01:33]} 48. Kc2 {[%clk 0:01:01]}  Kd4 {[%clk 0:01:33]} 49. Kd2 {[%clk 0:01:02]}  Kd5 {[%clk 0:00:25]} 50. Kc3 {[%clk 0:01:02]}  Kc5 {[%clk 0:00:25]} 51. Kc2 {[%clk 0:01:02]}  Kd4 {[%clk 0:00:21]} 52. Kd2 {[%clk 0:01:02]}  c3+ {[%clk 0:00:20]} 53. Kc2 {[%clk 0:01:02]}  Kc4 {[%clk 0:00:20]} 54. Kc1 {[%clk 0:01:02]}  Kd3 {[%clk 0:00:17]} 55. Kd1 {[%clk 0:01:03]}  Ke4 {[%clk 0:00:07]} 56. Kc2 {[%clk 0:01:03]}  Kd4 {[%clk 0:00:07]} 57. Kc1 {[%clk 0:01:02]}  Kc5 {[%clk 0:00:06]} 58. Kc2 {[%clk 0:01:02]}  Kb4 {[%clk 0:00:06]} 59. Kd3 {[%clk 0:00:59]}  c2 {[%clk 0:00:04]} 60. Kxc2 {[%clk 0:00:59]}  Kc4 {[%clk 0:00:05]} 61. Kd2 {[%clk 0:00:59]}  Kd4 {[%clk 0:00:06]} 62. Kc2 {[%clk 0:00:59]}  Kc4 {[%clk 0:00:06]} 63. Kd2 {[%clk 0:00:59]}  Kd4 {[%clk 0:00:07]} 64. Kc2 {[%clk 0:00:59]}  Kc4 {[%clk 0:00:07]} 1/2-1/2


[Site "https://www.chess.com"]

[Event "Titled Tuesday Blitz April 25 Early 2023"]
[White "Kubatko, Ivan"]
[Black "Vlassov, Nikolai"]
[WhiteFideId "24111473"]
[BlackFideId "4103360"]
[WhiteElo "2285"]
[BlackElo "2324"]
[Result "1-0"]
[Round "06"]
[TimeControl "180+2"]
[Date "2023.04.25"]
[WhiteClock "0:00:05"]
[BlackClock "0:00:01"]

1. e4 {[%clk 0:03:00]}  c5 {[%clk 0:02:58]} 2. Nc3 {[%clk 0:02:43]}  g6 {[%clk 0:02:50]} 3. f4 {[%clk 0:02:43]}  Bg7 {[%clk 0:02:49]} 4. Nf3 {[%clk 0:02:43]}  d6 {[%clk 0:02:48]} 5. Bc4 {[%clk 0:02:43]}  a6 {[%clk 0:02:41]} 6. a4 {[%clk 0:02:42]}  Nc6 {[%clk 0:02:36]} 7. d3 {[%clk 0:02:37]}  e6 {[%clk 0:02:32]} 8. f5 {[%clk 0:02:37]}  gxf5 {[%clk 0:02:19]} 9. O-O {[%clk 0:02:37]}  Nge7 {[%clk 0:02:15]} 10. Qe1 {[%clk 0:02:12]}  fxe4 {[%clk 0:01:48]} 11. dxe4 {[%clk 0:02:11]}  Ng6 {[%clk 0:01:43]} 12. Kh1 {[%clk 0:01:43]}  Nce5 {[%clk 0:01:36]} 13. Ba2 {[%clk 0:01:28]}  Bd7 {[%clk 0:01:33]} 14. Qg3 {[%clk 0:01:26]}  Qe7 {[%clk 0:01:19]} 15. Bg5 {[%clk 0:01:14]}  f6 {[%clk 0:01:18]} 16. Be3 {[%clk 0:01:14]}  O-O-O {[%clk 0:01:13]} 17. Rfd1 {[%clk 0:01:12]}  Bc6 {[%clk 0:01:03]} 18. Qh3 {[%clk 0:00:58]}  Bd7 {[%clk 0:00:51]} 19. Rab1 {[%clk 0:00:52]}  h5 {[%clk 0:00:45]} 20. Ne2 {[%clk 0:00:26]}  Ng4 {[%clk 0:00:42]} 21. Bg1 {[%clk 0:00:27]}  e5 {[%clk 0:00:37]} 22. Qg3 {[%clk 0:00:24]}  h4 {[%clk 0:00:35]} 23. Qe1 {[%clk 0:00:24]}  h3 {[%clk 0:00:35]} 24. g3 {[%clk 0:00:23]}  f5 {[%clk 0:00:29]} 25. Nc3 {[%clk 0:00:19]}  fxe4 {[%clk 0:00:24]} 26. Nxe4 {[%clk 0:00:18]}  Bc6 {[%clk 0:00:23]} 27. Bd5 {[%clk 0:00:18]}  Qc7 {[%clk 0:00:19]} 28. c4 {[%clk 0:00:17]}  Bxd5 {[%clk 0:00:16]} 29. cxd5 {[%clk 0:00:16]}  Kb8 {[%clk 0:00:16]} 30. Nfg5 {[%clk 0:00:16]}  Nf8 {[%clk 0:00:13]} 31. Qe2 {[%clk 0:00:15]}  Nf6 {[%clk 0:00:13]} 32. Nxf6 {[%clk 0:00:12]}  Bxf6 {[%clk 0:00:13]} 33. Ne4 {[%clk 0:00:13]}  Be7 {[%clk 0:00:12]} 34. b4 {[%clk 0:00:13]}  c4 {[%clk 0:00:12]} 35. b5 {[%clk 0:00:13]}  a5 {[%clk 0:00:09]} 36. b6 {[%clk 0:00:13]}  Qc8 {[%clk 0:00:09]} 37. Rdc1 {[%clk 0:00:11]}  Qf5 {[%clk 0:00:03]} 38. Rxc4 {[%clk 0:00:11]}  Rc8 {[%clk 0:00:03]} 39. Rf1 {[%clk 0:00:07]}  Qg6 {[%clk 0:00:02]} 40. Rfc1 {[%clk 0:00:06]}  Nd7 {[%clk 0:00:01]} 41. Rc7 {[%clk 0:00:05]} 1-0


[Site "https://www.chess.com"]

[Event "Titled Tuesday Blitz April 25 Early 2023"]
[White "Gurevich, Dmitry"]
[Black "Schnaider, Ilan"]
[WhiteFideId "2000407"]
[BlackFideId "169013"]
[WhiteElo "2506"]
[BlackElo "2224"]
[Result "0-1"]
[Round "06"]
[TimeControl "180+2"]
[Date "2023.04.25"]
[WhiteClock "0:00:01"]
[BlackClock "0:00:06"]

1. d4 {[%clk 0:03:00]}  Nf6 {[%clk 0:02:59]} 2. c4 {[%clk 0:03:00]}  g6 {[%clk 0:02:59]} 3. Nc3 {[%clk 0:03:00]}  d5 {[%clk 0:03:00]} 4. Nf3 {[%clk 0:02:59]}  Bg7 {[%clk 0:02:59]} 5. cxd5 {[%clk 0:02:59]}  Nxd5 {[%clk 0:03:00]} 6. Bd2 {[%clk 0:03:00]}  c5 {[%clk 0:02:59]} 7. Rc1 {[%clk 0:02:57]}  O-O {[%clk 0:02:50]} 8. dxc5 {[%clk 0:02:56]}  Nc6 {[%clk 0:02:46]} 9. e3 {[%clk 0:02:52]}  Ndb4 {[%clk 0:02:46]} 10. a3 {[%clk 0:02:47]}  Nd3+ {[%clk 0:02:43]} 11. Bxd3 {[%clk 0:02:46]}  Qxd3 {[%clk 0:02:43]} 12. Qe2 {[%clk 0:02:44]}  Bf5 {[%clk 0:02:41]} 13. e4 {[%clk 0:02:28]}  Qxe2+ {[%clk 0:02:34]} 14. Kxe2 {[%clk 0:02:27]}  Bg4 {[%clk 0:02:35]} 15. Be3 {[%clk 0:02:23]}  Na5 {[%clk 0:01:51]} 16. h3 {[%clk 0:02:00]}  Be6 {[%clk 0:01:46]} 17. Rhd1 {[%clk 0:01:51]}  Nc4 {[%clk 0:01:23]} 18. b4 {[%clk 0:01:41]}  Nxa3 {[%clk 0:00:48]} 19. Nd4 {[%clk 0:01:33]}  Bc4+ {[%clk 0:00:46]} 20. Kf3 {[%clk 0:01:30]}  e5 {[%clk 0:00:42]} 21. Nde2 {[%clk 0:01:16]}  f5 {[%clk 0:00:41]} 22. exf5 {[%clk 0:01:04]}  gxf5 {[%clk 0:00:33]} 23. g3 {[%clk 0:01:03]}  Nb5 {[%clk 0:00:21]} 24. Nxb5 {[%clk 0:00:40]}  Bxb5 {[%clk 0:00:20]} 25. Nc3 {[%clk 0:00:37]}  Bc6+ {[%clk 0:00:20]} 26. Ke2 {[%clk 0:00:35]}  f4 {[%clk 0:00:20]} 27. gxf4 {[%clk 0:00:29]}  exf4 {[%clk 0:00:20]} 28. Bd4 {[%clk 0:00:29]}  Rae8+ {[%clk 0:00:17]} 29. Kf1 {[%clk 0:00:28]}  Bh6 {[%clk 0:00:10]} 30. b5 {[%clk 0:00:26]}  Bf3 {[%clk 0:00:08]} 31. Rd3 {[%clk 0:00:26]}  Bh5 {[%clk 0:00:06]} 32. Nd5 {[%clk 0:00:22]}  f3 {[%clk 0:00:06]} 33. Nf6+ {[%clk 0:00:20]}  Rxf6 {[%clk 0:00:06]} 34. Bxf6 {[%clk 0:00:20]}  Bxc1 {[%clk 0:00:06]} 35. Rd7 {[%clk 0:00:17]}  Ba3 {[%clk 0:00:04]} 36. Rg7+ {[%clk 0:00:15]}  Kf8 {[%clk 0:00:03]} 37. c6 {[%clk 0:00:04]}  Bb4 {[%clk 0:00:03]} 38. Kg1 {[%clk 0:00:02]}  Re1+ {[%clk 0:00:04]} 39. Kh2 {[%clk 0:00:02]}  Bd6+ {[%clk 0:00:05]} 40. Rg3 {[%clk 0:00:01]}  Bxg3+ {[%clk 0:00:05]} 41. Kxg3 {[%clk 0:00:01]}  bxc6 {[%clk 0:00:06]} 0-1


[Site "https://www.chess.com"]

[Event "Titled Tuesday Blitz April 25 Early 2023"]
[White "KorolDimitriy75"]
[Black "Odegov, Artem"]
[BlackFideId "34183644"]
[WhiteElo "2431"]
[BlackElo "2300"]
[Result "0-1"]
[Round "06"]
[TimeControl "180+2"]
[Date "2023.04.25"]
[WhiteClock "0:00:01"]
[BlackClock "0:01:45"]

1. d4 {[%clk 0:03:00]}  d5 {[%clk 0:02:58]} 2. c4 {[%clk 0:03:00]}  e6 {[%clk 0:02:58]} 3. Nc3 {[%clk 0:03:01]}  c5 {[%clk 0:02:59]} 4. cxd5 {[%clk 0:03:00]}  exd5 {[%clk 0:03:00]} 5. Nf3 {[%clk 0:02:59]}  Nc6 {[%clk 0:03:00]} 6. g3 {[%clk 0:02:59]}  Nf6 {[%clk 0:02:58]} 7. Bg2 {[%clk 0:02:59]}  Be7 {[%clk 0:02:59]} 8. O-O {[%clk 0:02:59]}  O-O {[%clk 0:02:59]} 9. dxc5 {[%clk 0:02:59]}  Bxc5 {[%clk 0:03:00]} 10. Na4 {[%clk 0:02:59]}  Be7 {[%clk 0:03:00]} 11. Be3 {[%clk 0:02:59]}  Bg4 {[%clk 0:03:00]} 12. Rc1 {[%clk 0:02:50]}  Re8 {[%clk 0:03:00]} 13. Bc5 {[%clk 0:02:39]}  Rc8 {[%clk 0:02:58]} 14. Re1 {[%clk 0:02:22]}  h6 {[%clk 0:02:50]} 15. a3 {[%clk 0:01:08]}  Bxc5 {[%clk 0:02:45]} 16. Nxc5 {[%clk 0:01:08]}  Qe7 {[%clk 0:02:45]} 17. b4 {[%clk 0:01:01]}  Rcd8 {[%clk 0:02:40]} 18. Nd4 {[%clk 0:00:55]}  Ne5 {[%clk 0:02:38]} 19. Qb3 {[%clk 0:00:44]}  Nc4 {[%clk 0:02:33]} 20. e3 {[%clk 0:00:37]}  Ne5 {[%clk 0:02:19]} 21. h3 {[%clk 0:00:35]}  Bh5 {[%clk 0:02:16]} 22. Nd3 {[%clk 0:00:29]}  Nxd3 {[%clk 0:02:08]} 23. Qxd3 {[%clk 0:00:30]}  Bg6 {[%clk 0:02:08]} 24. Qb3 {[%clk 0:00:27]}  Ne4 {[%clk 0:02:08]} 25. Qb2 {[%clk 0:00:25]}  Rc8 {[%clk 0:02:06]} 26. Rxc8 {[%clk 0:00:21]}  Rxc8 {[%clk 0:02:07]} 27. Rc1 {[%clk 0:00:22]}  Qd7 {[%clk 0:02:07]} 28. Rc2 {[%clk 0:00:14]}  Rxc2 {[%clk 0:02:03]} 29. Nxc2 {[%clk 0:00:14]}  Qc7 {[%clk 0:01:59]} 30. Nd4 {[%clk 0:00:14]}  Qc4 {[%clk 0:01:57]} 31. Bf1 {[%clk 0:00:13]}  Qc8 {[%clk 0:01:55]} 32. Qb3 {[%clk 0:00:12]}  Qc1 {[%clk 0:01:45]} 33. Qxd5 {[%clk 0:00:11]}  Nd2 {[%clk 0:01:45]} 34. Qg2 {[%clk 0:00:08]}  Bd3 {[%clk 0:01:44]} 35. Qxb7 {[%clk 0:00:03]}  Qxf1+ {[%clk 0:01:44]} 36. Kh2 {[%clk 0:00:04]}  Qxf2+ {[%clk 0:01:44]} 37. Qg2 {[%clk 0:00:04]}  Nf1+ {[%clk 0:01:44]} 38. Kh1 {[%clk 0:00:03]}  Be4 {[%clk 0:01:45]} 39. Qxe4 {[%clk 0:00:01]}  Nxg3# {[%clk 0:01:45]} 0-1


[Site "https://www.chess.com"]

[Event "Titled Tuesday Blitz April 25 Early 2023"]
[White "Karthik Sai Ch"]
[Black "Safin, Robert"]
[WhiteFideId "46649484"]
[BlackFideId "34189120"]
[WhiteElo "2003"]
[BlackElo "2245"]
[Result "1/2-1/2"]
[Round "06"]
[TimeControl "180+2"]
[Date "2023.04.25"]
[WhiteClock "0:00:54"]
[BlackClock "0:00:04"]

1. d4 {[%clk 0:03:00]}  Nf6 {[%clk 0:02:59]} 2. Nf3 {[%clk 0:02:59]}  d5 {[%clk 0:02:57]} 3. Bf4 {[%clk 0:02:58]}  c5 {[%clk 0:02:57]} 4. e3 {[%clk 0:02:58]}  Nc6 {[%clk 0:02:54]} 5. Nbd2 {[%clk 0:02:58]}  cxd4 {[%clk 0:02:53]} 6. exd4 {[%clk 0:02:58]}  Bg4 {[%clk 0:02:53]} 7. c3 {[%clk 0:02:57]}  e6 {[%clk 0:02:53]} 8. Qb3 {[%clk 0:02:56]}  Bd6 {[%clk 0:02:31]} 9. Qxb7 {[%clk 0:02:47]}  Bxf4 {[%clk 0:02:32]} 10. Qxc6+ {[%clk 0:02:47]}  Kf8 {[%clk 0:02:32]} 11. Bd3 {[%clk 0:02:42]}  Rb8 {[%clk 0:02:22]} 12. O-O {[%clk 0:02:39]}  Rxb2 {[%clk 0:01:57]} 13. Rab1 {[%clk 0:02:38]}  Rxd2 {[%clk 0:01:40]} 14. Nxd2 {[%clk 0:02:36]}  Bxd2 {[%clk 0:01:41]} 15. Qc5+ {[%clk 0:02:34]}  Kg8 {[%clk 0:01:37]} 16. Qxa7 {[%clk 0:02:33]}  Bf4 {[%clk 0:01:36]} 17. Rb7 {[%clk 0:02:29]}  Ne8 {[%clk 0:01:12]} 18. Rxf7 {[%clk 0:02:24]}  Bc7 {[%clk 0:01:12]} 19. Rxc7 {[%clk 0:02:09]}  Qxc7 {[%clk 0:01:05]} 20. Qa8 {[%clk 0:02:02]}  Kf7 {[%clk 0:01:01]} 21. Rb1 {[%clk 0:02:01]}  Kf6 {[%clk 0:01:00]} 22. h3 {[%clk 0:01:58]}  Bf5 {[%clk 0:00:51]} 23. Bxf5 {[%clk 0:01:56]}  Kxf5 {[%clk 0:00:44]} 24. Rb8 {[%clk 0:01:51]}  Qd7 {[%clk 0:00:26]} 25. a4 {[%clk 0:01:47]}  Nc7 {[%clk 0:00:24]} 26. Qb7 {[%clk 0:01:39]}  Rxb8 {[%clk 0:00:24]} 27. Qxb8 {[%clk 0:01:39]}  Qc6 {[%clk 0:00:22]} 28. a5 {[%clk 0:01:37]}  Kg6 {[%clk 0:00:20]} 29. Qb4 {[%clk 0:01:32]}  Kf7 {[%clk 0:00:18]} 30. Kh2 {[%clk 0:01:24]}  Ke8 {[%clk 0:00:14]} 31. Qb8+ {[%clk 0:01:21]}  Kf7 {[%clk 0:00:12]} 32. Qb4 {[%clk 0:01:17]}  h6 {[%clk 0:00:12]} 33. h4 {[%clk 0:01:15]}  Ke8 {[%clk 0:00:08]} 34. Qb8+ {[%clk 0:01:14]}  Kf7 {[%clk 0:00:07]} 35. Qb4 {[%clk 0:01:13]}  Nb5 {[%clk 0:00:07]} 36. Qc5 {[%clk 0:01:08]}  Qxc5 {[%clk 0:00:06]} 37. dxc5 {[%clk 0:01:09]}  Ke7 {[%clk 0:00:05]} 38. Kg3 {[%clk 0:01:06]}  Kd7 {[%clk 0:00:05]} 39. Kf4 {[%clk 0:01:05]}  Kc6 {[%clk 0:00:03]} 40. a6 {[%clk 0:01:04]}  Kxc5 {[%clk 0:00:02]} 41. Ke5 {[%clk 0:01:03]}  Kb6 {[%clk 0:00:02]} 42. Kxe6 {[%clk 0:01:03]}  Nxc3 {[%clk 0:00:02]} 43. Ke5 {[%clk 0:01:02]}  Kxa6 {[%clk 0:00:03]} 44. Kd4 {[%clk 0:01:02]}  Nd1 {[%clk 0:00:03]} 45. f3 {[%clk 0:01:00]}  Kb7 {[%clk 0:00:03]} 46. Kxd5 {[%clk 0:01:00]}  Ne3+ {[%clk 0:00:02]} 47. Ke6 {[%clk 0:00:59]}  Nxg2 {[%clk 0:00:03]} 48. Kf7 {[%clk 0:00:58]}  Nxh4 {[%clk 0:00:03]} 49. Kxg7 {[%clk 0:00:59]}  Nf5+ {[%clk 0:00:03]} 50. Kg6 {[%clk 0:00:59]}  Nd4 {[%clk 0:00:03]} 51. f4 {[%clk 0:00:54]}  Kc6 {[%clk 0:00:03]} 52. Kxh6 {[%clk 0:00:54]}  Kd6 {[%clk 0:00:04]} 53. Kg6 {[%clk 0:00:54]}  Ke7 {[%clk 0:00:04]} 54. f5 {[%clk 0:00:54]}  Nxf5 {[%clk 0:00:04]} 1/2-1/2


[Site "https://www.chess.com"]